Cogmind - Beta 16 --- EXPLORER MODE // 2025.12.04 @ 07:53:28 Player: K.K.Y. Result: Destroyed by 5U-ULM(R) with Subdweller Laser Performance ------------- Evolutions (0) 0 Regions Visited (3) 600 Robots Destroyed (58) 290 Value Destroyed (1008) 1008 Prototype IDs (12) 240 Alien Tech Used (0) 0 Bonus (37) 37 TOTAL SCORE: 2175 Bonus ------- Follower Combat Kills 37 Cogmind --------- Core Integrity 0/250 Matter 290/300 Energy 131/200 System Corruption 0% Temperature Cool (6) Movement Treading (160) Location -10/Subcaves Parts ------- > --- POWER (1+1) ------ Subdweller Power Source > --- PROPULSION (2) --- Light Treads Spiked Treads > --- UTILITY (3) ------ Improved Terrain Scanner Terrain Scan Processor Terrain Scan Processor > --- WEAPON (2) ------- Powered Cannon > --- INVENTORY (5) ---- High-capacity Storage Unit Structural Scanner Heavy Riot Gun Barrage Gun Datajack Peak State ------------ > --- POWER ------------ Subdweller Power Source > --- PROPULSION ------- Light Treads Spiked Treads > --- UTILITY ---------- Improved Terrain Scanner Terrain Scan Processor Terrain Scan Processor > --- WEAPON ----------- Powered Cannon > --- INVENTORY -------- High-capacity Storage Unit Structural Scanner Heavy Riot Gun Barrage Gun Datajack [Rating: 27] Favorites ----------- Power Ion Engine Engine Ion Engine Propulsion Light Treads Treads Light Treads Utility Terrain Scan Processor Device Improved Terrain Scanner Processor Terrain Scan Processor Weapon Medium Laser Energy Gun Medium Laser Energy Cannon Powered Cannon Ballistic Gun Light Assault Rifle Ballistic Cannon Light Cannon Special Weapon Mining Laser Build | -11 -10 -10 -10 ------- Run | Yrd Mat Min Sub Slots Evolved 1 | . 1 . . Power . | . . . . Propulsion . | . . . . Utility 1 | . 1 . . Weapon . | . . . . Parts Attached 28 | 5 9 2 12 Power 7 | 1 1 . 5 Engine 7 | 1 1 . 5 Core . | . . . . Reactor . | . . . . Propulsion 6 | 2 1 2 1 Treads 6 | 2 1 2 1 Leg . | . . . . Wheel . | . . . . Hover . | . . . . Flight . | . . . . Utility 5 | . 5 . . Device 3 | . 3 . . Storage . | . . . . Processor 2 | . 2 . . Hackware . | . . . . Protection . | . . . . Artifact . | . . . . Weapon 10 | 2 2 . 6 Energy Gun 3 | 2 1 . . Energy Cannon 1 | . . . 1 Ballistic Gun 1 | . . . 1 Ballistic Cannon 4 | . . . 4 Launcher . | . . . . Special Weapon 1 | . 1 . . Impact Weapon . | . . . . Slashing Weapon . | . . . . Piercing Weapon . | . . . . Special Melee Weapon . | . . . . Unidentified Prototypes . | . . . . Parts Lost 4 | . . . 4 Power 2 | . . . 2 Propulsion . | . . . . Utility . | . . . . Weapon 2 | . . . 2 Highest Loss Streak 2 | . . . 2 To Critical Strikes 1 | . . . 1 Average Backups 4 | 1 3 5 4 Power . | . . . . Propulsion . | . . . . Utility 1 | . 1 2 2 Weapon 1 | . 1 2 1 Tool/Special . | . . . . Unused Backups 8 | . 2 . 6 Power 1 | . 1 . . Propulsion . | . . . . Utility 2 | . . . 2 Weapon 4 | . 1 . 3 Tool/Special 1 | . . . 1 Average Slot Usage (%) 83 | . 76 100 82 Engine 9 | . 11 12 8 Treads 23 | . 25 25 23 Device 11 | . 11 12 11 Processor 18 | . 2 25 23 Energy Gun 5 | . 14 12 . Energy Cannon 4 | . . . 6 Ballistic Cannon 4 | . . . 7 Special Weapon 4 | . 9 12 . Peak Build Rating 27 | 5 12 12 27 Average Rating 16 | 3 8 12 20 On Entrance 7 | . 5 12 12 Avg Prop Armor Cover (%) . | . . . . Naked Turns . | . . . . Heaviest Build 15 | 8 10 9 15 Greatest Support 40 | 40 40 40 40 Greatest Overweight (x) . | . . . . Average Overweight (x) . | . . . . Largest Inventory Capacity 5 | 5 5 5 5 Average Capacity 5 | 5 5 5 5 Most Carried 5 | 5 5 5 5 Average Carried 4 | 1 3 5 4 Final Capacity 5 | 5 5 5 5 Final Carried 5 | 2 5 5 5 Class Distribution -------------------- 76% | Hacker-Mutant 23% | Scavenger-Mutant Dominant Class ---------------- Hacker-Mutant | -10/Materials Scavenger-Mutant | -10/Mines Hacker-Mutant | -10/Subcaves Resources | -11 -10 -10 -10 ----------- Run | Yrd Mat Min Sub Matter Collected 797 | 250 120 20 407 Remotely . | . . . . Salvage Created 1371 | 111 773 114 373 Parts 104 | 4 64 13 23 Haulers Intercepted 2 | . 2 . . Recyclers Shooed . | . . . . Parts Field Recycled . | . . . . Retrieved Matter . | . . . . Parts Self-Destructed . | . . . . Prevented . | . . . . Parts Restored . | . . . . Kills | -11 -10 -10 -10 ------- Run | Yrd Mat Min Sub Combat Hostiles Destroyed 26 | . 9 3 14 Guns 13 | . 9 2 2 Cannons 13 | . . 1 12 Classes Destroyed 11 | 2 6 . 3 Worker 2 | . 2 . . Builder 15 | . 12 3 . Tunneler 5 | 1 3 1 . Hauler 2 | . 2 . . Recycler 2 | 1 1 . . Turret 2 | . . . 2 Watcher 3 | . 3 . . Swarmer 9 | . 4 1 4 Grunt 8 | . 5 2 1 Sentry 1 | . . . 1 Subdweller 9 | . . . 9 Best Kill Streak 5 | 2 5 2 3 Combat Bots Only 3 | . 3 2 3 Max Kills in Single Turn 2 | 1 2 1 1 Gunslinging 1 | . 1 . . Exploded . | . . . . Melee . | . . . . Uniques/NPCs Destroyed . | . . . . Combat | -11 -10 -10 -10 -------- Run | Yrd Mat Min Sub Hostile Shots Fired 275 | . 45 13 217 Missed 98 | . 11 1 86 Hits 177 | . 34 12 131 Projectile 177 | . 34 12 131 Critical Strikes 6 | . 4 . 2 Damage Taken 1194 | . 262 98 834 Core 262 | . 50 . 212 Absorbed by Shields . | . . . . Ignored by Resistances 794 | . 167 61 566 Core Remaining (%) 100 | 100 . . . Volleys Fired 188 | 2 67 22 97 Largest 2 | 2 2 2 2 Hottest 150 | 90 150 150 150 Shots Fired 278 | 4 102 30 142 Gun 159 | 4 87 22 46 Cannon 86 | . . . 86 Launcher . | . . . . Special 33 | . 15 8 10 Kinetic 91 | . . . 91 Thermal 187 | 4 102 30 51 Explosive . | . . . . Electromagnetic . | . . . . Robot Hit Streak 39 | 3 18 26 39 Robot Miss Streak 3 | . 2 . 3 Penetration Max . | . . . . Secondary Targets 3 | . 3 . . Max Gunslinging Chain 1 | . 1 . . Shots Hit Robots 198 | 3 86 25 84 Core Hits 84 | 3 41 11 29 Critical Kills . | . . . . Critical Parts Destroyed . | . . . . Critical Strikes 12 | 1 6 1 4 Burn 8 | 1 6 1 . Blast 4 | . . . 4 Melee Attacks . | . . . . Impact . | . . . . Slashing . | . . . . Piercing . | . . . . Sneak Attacks . | . . . . Combat Hostiles . | . . . . Follow-up Attacks . | . . . . Damage Inflicted 3001 | 35 1168 385 1413 Guns 1634 | 35 928 265 406 Cannons 839 | . . . 839 Explosions . | . . . . Melee . | . . . . Ramming . | . . . . Kinetic 750 | . . . 750 Thermal 2251 | 35 1168 385 663 Explosive . | . . . . Electromagnetic . | . . . . Impact . | . . . . Slashing . | . . . . Piercing . | . . . . Highest Corruption . | . . . . Average Corruption . | . . . . Corruption Purged . | . . . . Corruption Blocked . | . . . . Overload Shots . | . . . . Overflow Damage 8 | . 6 2 . Projectiles 8 | . 6 2 . Explosions . | . . . . Melee . | . . . . Knockbacks 5 | . . . 5 Impact . | . . . . Kinetic 5 | . . . 5 Secondary . | . . . . Self-Inflicted Damage . | . . . . Shots . | . . . . Rammed . | . . . . Targets Rammed . | . . . . Kicked . | . . . . Crushed . | . . . . Highest Temperature 405 | 30 405 325 15 Average Temperature 86 | 18 87 96 7 Received Heat Transfer 1002 | . 267 78 657 Effects 6 | . 5 1 . Shutdowns 3 | . 2 1 . Interference 3 | . 3 . . Siege Activations . | . . . . Martial Activations . | . . . . Shielding Activations . | . . . . Robots Disrupted . | . . . . Combat Hostiles . | . . . . Robots Corrupted . | . . . . Combat Hostiles . | . . . . Parts Fried . | . . . . Impact Corruptions . | . . . . Robots Melted . | . . . . Combat Hostiles . | . . . . Parts Melted 7 | . 6 1 . Heat Transferred 5987 | 173 3623 1101 1090 Parts Sabotaged . | . . . . Parts Stolen . | . . . . Parts Stripped . | . . . . Power Chain Reactions . | . . . . Alert | -11 -10 -10 -10 ------- Run | Yrd Mat Min Sub Maximum Alert Level . | . . . . Low Security (%) 100 | 100 100 100 . Level 1 . | . . . . Level 2 . | . . . . Level 3 . | . . . . Level 4 . | . . . . Level 5 . | . . . . High Security . | . . . . Max Security . | . . . . Peak Influence 72 | 5 72 53 . Initial . | . . . . Average 4 | . 5 4 . Influence Increases 653 | 10 347 126 170 Destroy 0b10 Robot/C 400 | . 180 80 140 Destroy 0b10 Robot/NC 145 | 10 115 20 . Destroy Leader 70 | . 50 20 . Allied During Kill 4 | . . 4 . Destroy Structure 4 | . 2 2 . Lose Combat Pursuer 30 | . . . 30 Influence Decreases 653 | 10 347 126 170 Time Decay 633 | 10 347 126 150 Lost Part 20 | . . . 20 Squads Dispatched . | . . . . Investigation . | . . . . Extermination . | . . . . Reinforcement . | . . . . Assault . | . . . . Garrison . | . . . . Intercept . | . . . . Searches Triggered . | . . . . Construction Impeded . | . . . . Haulers Reinforced . | . . . . Active Scanning Responses . | . . . . Cargo Convoy Interrupts . | . . . . Stealth | -11 -10 -10 -10 --------- Run | Yrd Mat Min Sub Distress Signals 3 | . 2 1 . Communications Jammed . | . . . . Distress Signals . | . . . . Times Spotted 40 | . 13 4 23 Peak Tracking Total 5 | . 4 2 5 Tactical Retreats 3 | . . . 3 Traps | -11 -10 -10 -10 ------- Run | Yrd Mat Min Sub Traps Triggered 2 | . 2 . . Indirectly . | . . . . Trap Hack Attempts . | . . . . Triggered . | . . . . Disarmed . | . . . . Reprogrammed . | . . . . Reused . | . . . . Traps Extracted . | . . . . Installed . | . . . . Triggered . | . . . . Machines | -11 -10 -10 -10 ---------- Run | Yrd Mat Min Sub Machines Disabled 1 | . . . 1 Max in Single Turn 1 | . . . 1 Machines Repaired . | . . . . Machines Dismantled . | . . . . Machines Sabotaged . | . . . . Overloaded Fab Kills . | . . . . Hacking | -11 -10 -10 -10 --------- Run | Yrd Mat Min Sub Machines Accessed 2 | . . . 2 Terminals . | . . . . Fabricators . | . . . . Repair Stations . | . . . . Recycling Units . | . . . . Scanalyzers . | . . . . Garrison Access . | . . . . Total Hacks 5 | . . . 5 Successful 5 | . . . 5 Failed . | . . . . Catastrophic . | . . . . Database Lockouts . | . . . . Manual . | . . . . Terminals . | . . . . Fabricators . | . . . . Repair Stations . | . . . . Recycling Units . | . . . . Scanalyzers . | . . . . Garrison Access . | . . . . Terminal Hacks 5 | . . . 5 Record 4 | . . . 4 Proto ID Catalog 1 | . . . 1 Fabricator Hacks . | . . . . Repair Station Hacks . | . . . . Recycling Unit Hacks . | . . . . Scanalyzer . | . . . . Garrison Access Hacks . | . . . . Unauthorized Hacks . | . . . . Terminals . | . . . . Fabricators . | . . . . Repair Stations . | . . . . Recycling Units . | . . . . Scanalyzers . | . . . . Garrison Access . | . . . . Data Cores Recovered . | . . . . Used . | . . . . Hacking Detections . | . . . . Full Trace Events . | . . . . Feedback Events . | . . . . Feedback Blocked . | . . . . Robot Schematics Acquired . | . . . . Robots Built . | . . . . Authchips . | . . . . Time . | . . . . Total Robot Build Rating . | . . . . Part Schematics Acquired . | . . . . Parts Built . | . . . . Authchips . | . . . . Time . | . . . . Total Part Build Rating . | . . . . Part Studies Acquired . | . . . . Parts Repaired . | . . . . Time . | . . . . Parts Recycled . | . . . . Recycled Matter . | . . . . Retrieved Matter . | . . . . Retrieved Components . | . . . . Parts Scanalyzed . | . . . . Part Schematics Acquired . | . . . . Parts Damaged . | . . . . Bothacking | -11 -10 -10 -10 ------------ Run | Yrd Mat Min Sub Used RIF Installer . | . . . . Robots Hacked . | . . . . Non-combat . | . . . . Combat . | . . . . Robot Hacks Applied . | . . . . Relay Couplers Released . | . . . . Fabnet Peak Effective % . | . . . . Robots Rewired . | . . . . Allies Hacked . | . . . . Hacks Repelled . | . . . . Allies | -11 -10 -10 -10 -------- Run | Yrd Mat Min Sub Total Allies 3 | . . 3 . Largest Group 3 | . . 3 3 Highest-Rated Group 40 | . . 40 40 Highest-Rated Ally 16 | . . 16 16 Total Orders . | . . . . Ally Attacks 14 | . . 5 9 Total Damage 121 | . . 31 90 Kills 2 | . . 1 1 Allies Corrupted . | . . . . Allies Melted . | . . . . Intel | -11 -10 -10 -10 ------- Run | Yrd Mat Min Sub Active Infowar (turns) 7124 | . 1653 969 4502 Terrain 7124 | . 1653 969 4502 Robot Analysis Total . | . . . . Derelict Logs Recovered 2 | . . . 2 Drone Launches . | . . . . Drone Recoveries . | . . . . Exploration | -11 -10 -10 -10 ------------- Run | Yrd Mat Min Sub Turns Passed 7341 | 97 1773 969 4502 Spaces Moved 3347 | 71 928 539 1809 Core 30 | 30 . . . Treads 3317 | 41 928 539 1809 Legs . | . . . . Wheels . | . . . . Hover . | . . . . Flight . | . . . . Fastest Speed 50 | 50 160 160 160 Average Speed 159 | 113 160 160 160 Slowest Speed 160 | 160 160 160 160 Overloaded Moves . | . . . . Propulsion Burnouts . | . . . . Robots Hopped . | . . . . Potential Cave-ins . | . . . . Cave-ins Triggered . | . . . . Exploration Rate (%) 72 | 3 99 97 91 Regions Visited 3 Branch Regions 2 Pre-discovered Areas . | . . . . Known Exits Taken 3 | 1 1 1 . Unknown Exits Taken . | . . . . Scrap Searched 10 | . . . 10 Spaces Dug 2 | . . . 2 Terrain Destroyed 7 | . 2 2 3 Melee . | . . . . Projectile 7 | . 2 2 3 AOE . | . . . . Terrain Rammed . | . . . . Walls Destroyed . | . . . . Machines Disabled . | . . . . Actions | -11 -10 -10 -10 --------- Run | Yrd Mat Min Sub Total 5039 | 84 1089 601 3265 Wait 1422 | . 54 37 1331 Move 3344 | 70 927 538 1809 Hop . | . . . . Pick Up 29 | 7 16 . 6 Fast Attach 6 | . 1 . 5 Attach 15 | 5 8 . 2 Detach 4 | . 4 . . Swap 10 | . 3 2 5 Drop 21 | . 9 2 10 Fire 188 | 2 67 22 97 Melee . | . . . . Ram . | . . . . Kick . | . . . . Crush . | . . . . Escape Stasis . | . . . . Rewire . | . . . . Trap . | . . . . Miscellaneous . | . . . . Route ------- -11/Scrapyard -10/Materials (discovered 6 exits: *Mat x3 / *Min x2 / *Sub) -10/Mines (discovered 4 exits: *Mat x2 / Exi / *Sub) -10/Subcaves (discovered 3 exits: *Mat x2 / *Rec) History --------- Turn | Location | Event 8 | -11/Scrapyard | Identified exit to Materials 8 | -11/Scrapyard | Discovered exit to Materials (range 16) 98 | -11/Scrapyard | Entered Materials 98 | -10/Materials | Evolved 1 slot: Utility x1 177 | -10/Materials | Identified exit to Mines 177 | -10/Materials | Discovered exit to Mines (range 16) 303 | -10/Materials | Build established: Hacker-Mutant 545 | -10/Materials | Identified exit to Materials 545 | -10/Materials | Discovered exit to Materials (range 16) 1118 | -10/Materials | Discovered exit to Materials (range 15) 1535 | -10/Materials | Identified exit to Subcaves 1535 | -10/Materials | Discovered exit to Subcaves (range 7) 1553 | -10/Materials | Discovered exit to Mines (range 10) 1629 | -10/Materials | Discovered exit to Materials (range 12) 1770 | -10/Materials | Build established: Scavenger-Mutant 1871 | -10/Materials | Entered Mines 1873 | -10/Mines | Assisted by bots powering up and referring to "LRC-V3" 2142 | -10/Mines | Discovered exit to Subcaves (range 9) 2241 | -10/Mines | Received a Rocket Launcher from a helpful Derelict 2310 | -10/Mines | Discovered exit to Materials (range 16) 2465 | -10/Mines | Identified exit to Exiles 2465 | -10/Mines | Discovered exit to Exiles (range 10) 2644 | -10/Mines | Discovered exit to Materials (range 16) 2840 | -10/Mines | Entered Subcaves 2840 | -10/Subcaves | Accompanied by 3 allies 2841 | -10/Subcaves | Approached by a straggling Scientist 2911 | -10/Subcaves | Disturbed a concealed Subdweller 3051 | -10/Subcaves | Identified exit to Materials 3051 | -10/Subcaves | Discovered exit to Materials (range 12) 3126 | -10/Subcaves | Identified exit to Recycling 3126 | -10/Subcaves | Discovered exit to Recycling (range 11) 3165 | -10/Subcaves | Core integrity fell below 50% 3413 | -10/Subcaves | Discovered exit to Materials (range 16) 3428 | -10/Subcaves | Shifting Twisted Machinery released Riot Gun 3469 | -10/Subcaves | Shifting Twisted Machinery released Sub. Machine Gun 3494 | -10/Subcaves | Build established: Hacker-Mutant 3530 | -10/Subcaves | Core integrity fell below 20% 4562 | -10/Subcaves | Visited 4L-MR0's lab 4584 | -10/Subcaves | Found Powered Cannon 4586 | -10/Subcaves | Attached Powered Cannon, gained temporary slot: Power 5057 | -10/Subcaves | Disturbed a concealed Subdweller 6717 | -10/Subcaves | Visited Clippyterm 6722 | -10/Subcaves | Learned 40 Factory zone layouts 6915 | -10/Subcaves | Learned Materials security intel 7342 | -10/Subcaves | Destroyed by 5U-ULM(R) with Subdweller Laser Last Messages --------------- using advanced predictive AI techniques? Data stored: Factory zone layouts (x40). >>Record "Hexidium" It looks like you're searching for the Unchained HQ. I could tell you where it is but then I'd have to kill you. >>Record "LRC-V1" It looks like you're REDACTED, I can suggest REDACTED and REDACTED. Also definitely avoid REDACTED. 06859_ S-10 Pest destroyed. 06861_ Acquired 10 matter. 06870_ Y-45 Defender destroyed. 06915_ Acquired derelict log, extracted data. Data stored: Materials security intel. 07086_ Sub. Power Source shoots sparks and powers down. 07086_ Dropped Broken Sub. Power Source. 07232_ Acquired Sub. Power Source. 07327_ 5U-ULM(R): "WEHOME!" Map ----- +----------------------------------------------------+ | ######### ## ##### ### #### ######?# | | ######### # ###### ### ######## | | ######### ##### ######### ######### ## | | ########## ##### ######## ########## | | ########### #### ####### ## ######### | | #### ### #### ####### ### #### #### < | | ### ## ## # ## ##### ""######## # " | | ### # # ###### " ######## " | | ### ## ## "######### # """ | | ## ### ##### "## # ## ####""# | | #### ###### """ ### ""# | | ### ####### ##### # "# | | ############## # # """ | | ############## ####### # ""# | | ### ############### ####### # """ | | #### ################ #### ###""" | | #### # # #### ### ### #### # | | ##### # #### ##### # | | ###### #### #### | | ######## ## ## ## ###### | | #??#### ################ ###### | | ??#### ################ ###### #### | | ##??# ##?######;# ## ##### #### | | ##??## ### ######## #####""" " ###[ # | | ?##?####### ###### ###### ""###"" ## | | ##?######### ? ##### R@ ######### ### ### | | ?#??#?####### #### ############### ### ### | | ############# ### ######### ###### #### ### | | ################# ###### ########### ### | | ##?#?############ ########### ## | | ################ ########### | | ####?#### ### ############## | | ######## #### ######################## | | ######## ### ########################### | | ######### ########################### | | #?####### ########################### | | ####### ########################### | | ###### = #######?################### | | ?##### & % ## ###############?############ | | ##### %%#### #######?####?##?############# | | ##### &#### #########?#?######?########### | | #########[& ### # ##############?###?####?###### | | ##### ## ## ##################?########### | | ### # ## ## ##########?####?##?#?######### | | ""## ## # "##############?##????####?##? | | %%"# ##""""#"""##################?######### | | %]"# # # "#""""##" #########?####?###?######### | | %|## #### "#" ## ###########???#######?#??### | | &## #### ### #######?####?########### | | % # ### ### ####?#####??########## | +----------------------------------------------------+ Best States ------------- Heat Dissipation 25 Energy Generation 15 Energy Capacity 250 Matter Stores 300 Matter Capacity 300 Sight Range 16 Terrain Scan Range 16 Terrain Scan Density 160 Resistance: KI 35 Resistance: TH 35 Resistance: EX 35 Resistance: EM 35 Resistance: I 35 Resistance: S 35 Resistance: P 35 Evasion (%) 50 Recoil Reduction 2 Offensive Hacking 20 Item Schematics ----------------- None Robot Schematics ------------------ None Fabricated ------------ Nothing Repaired ---------- Nothing Studied --------- None Alien Tech Used ----------------- None Achievements -------------- None Challenges ------------ None Game ------ Seed LayeredSpliceCrosscalibrator Manual? 0 Play Time 00:23:11 Cumulative 163.6 hours Start 2025.12.04 @ 07:27:50 End 2025.12.04 @ 07:53:28 Sessions 1 Manual Loads 0 Difficulty Explorer Special Mode None Game No. 217 Rogue 0 Adventurer 0 Explorer 217 Win Type - Total 0 Types 0/0/0/0/0/0/0/0/0/0 Lore% 70 Gallery% 66 Achievement% 52 Wizard Run 0 Options --------- Layout 1 ASCII 0 Keyboard 0 Movement Mouse Keybinds 0 Fullscreen 1 Font 24/Smallcaps Map View 50x35 Zoom Use 1% Tactical HUD 1 Map Filters NONE Filters NONE Steam 1 RUN: 46e77ce4-6296-4ebc-b114-35cd8d882dec